Cogmind - Beta 14 *** ADVENTURER MODE // 2025.03.13 @ 15:14:00 Player: Lee Result: Self-destructed Performance ------------- Evolutions (5) 2500 Regions Visited (10) 2000 Robots Destroyed (91) 455 Value Destroyed (3438) 3438 Prototype IDs (6) 120 Alien Tech Used (0) 0 Bonus (140) 140 TOTAL SCORE: 8653 Bonus ------- High Alert Combat Kills 140 Cogmind --------- Core Integrity 302/1000 Matter 42/300 Energy 99/100 System Corruption 1% Temperature Cool (0) Movement Core (50) Location -5/Extension Parts ------- > --- POWER (2) -------- (None) > --- PROPULSION (6) --- (None) > --- UTILITY (5) ------ Advanced Terrain Scanner > --- WEAPON (4) ------- (None) > --- INVENTORY (5) ---- Shock Absorption System Advanced System Restoration Module Peak State ------------ > --- POWER ------------ Improved Deuterium Engine Angular Momentum Engine > --- PROPULSION ------- Advanced Treads Advanced Treads Advanced Treads Advanced Treads Advanced Treads Medium Treads > --- UTILITY ---------- Huge Storage Unit Huge Storage Unit Advanced Weight Redist. System Improved Kinecellerator Shock Absorption System > --- WEAPON ----------- Plasma Cannon Heavy Assault Rifle Minigun Precision Rocket Launcher > --- INVENTORY -------- Light Deuterium Engine Light Nuclear Core Light Nuclear Core Light Nuclear Core Micro Nuclear Core Light Treads Improved Medium Treads Improved Heat Sink Coolant Injector Triangulator Improved Targeting Computer Shock Absorption System Shock Absorption System Plasma Cannon Plasma Cannon Heavy Assault Rifle Minigun Gauss Rifle Flak Gun Improved KE Penetrator Assault Cannon Assault Cannon Heavy Assault Cannon Mass Driver [Rating: 67] Favorites ----------- Power Ion Engine Engine Ion Engine Power Core Light Nuclear Core Propulsion Advanced Treads Treads Advanced Treads Leg Aluminum Leg Wheel Wheel Flight Unit VTOL Module Utility Huge Storage Unit Device Advanced Weight Redist. System Storage Huge Storage Unit Weapon Ion Cannon Energy Gun Heavy Particle Gun Energy Cannon Ion Cannon Ballistic Gun Minigun Ballistic Cannon Hypervelocity Gauss Cannon Launcher Grenade Launcher Build | -11 -10 -9 -9 -8 -7 -6 -5 -5 -5 -5 ------- Run | Yrd Mat Mat Min Mat Fac Fac Fac Was Fac Ext Slots Evolved 10 | . . 2 . 2 2 2 2 . . . Power 1 | . . . . . 1 . . . . . Propulsion 4 | . . 2 . 2 . . . . . . Utility 3 | . . . . . 1 1 1 . . . Weapon 2 | . . . . . . 1 1 . . . Parts Attached 92 | 4 5 7 . 13 29 5 16 9 . 4 Power 15 | . 1 . . 1 7 2 3 . . 1 Engine 9 | . 1 . . 1 4 2 1 . . . Core 6 | . . . . . 3 . 2 . . 1 Reactor . | . . . . . . . . . . . Propulsion 39 | 2 2 4 . 10 15 . 3 2 . 1 Treads 20 | 1 . 4 . 2 8 . 3 2 . . Leg 12 | 1 2 . . 8 1 . . . . . Wheel 1 | . . . . . . . . . . 1 Hover . | . . . . . . . . . . . Flight 6 | . . . . . 6 . . . . . Utility 12 | . 2 1 . . 3 1 3 1 . 1 Device 9 | . . . . . 3 1 3 1 . 1 Storage 3 | . 2 1 . . . . . . . . Processor . | . . . . . . . . . . . Hackware . | . . . . . . . . . . . Protection . | . . . . . . . . . . . Artifact . | . . . . . . . . . . . Weapon 26 | 2 . 2 . 2 4 2 7 6 . 1 Energy Gun 1 | . . . . . 1 . . . . . Energy Cannon 7 | . . 2 . 2 1 1 . . . 1 Ballistic Gun 11 | 2 . . . . 2 1 5 1 . . Ballistic Cannon 5 | . . . . . . . 1 4 . . Launcher 2 | . . . . . . . 1 1 . . Special Weapon . | . . . . . . . . . . . Impact Weapon . | . . . . . . . . . . . Slashing Weapon . | . . . . . . . . . . . Piercing Weapon . | . . . . . . . . . . . Special Melee Weapon . | . . . . . . . . . . . Unidentified Prototypes 6 | . . 1 . . 3 . 2 . . . Parts Lost 31 | . . . . . 10 . 7 11 . 3 Power 4 | . . . . . 2 . 1 . . 1 Propulsion 13 | . . . . . 6 . 2 4 . 1 Utility 3 | . . . . . . . 1 2 . . Weapon 11 | . . . . . 2 . 3 5 . 1 Highest Loss Streak 11 | . . . . . 7 . 3 11 . 3 To Critical Strikes 2 | . . . . . . . . 2 . . Average Slot Usage (%) 89 | . 91 88 100 99 90 100 97 36 . 6 Engine 8 | . 12 11 11 9 8 4 7 . . . Core 2 | . . . . . 5 7 2 4 . 1 Treads 21 | . 1 31 44 18 9 40 34 11 . . Leg 13 | . 26 1 . 35 20 . . . . . Flight 2 | . . . . . 8 . . . . . Device 6 | . . . . . 7 13 15 6 . 2 Storage 15 | . 21 22 22 18 15 13 11 4 . . Energy Gun 1 | . . . . . 4 . . . . . Energy Cannon 7 | . . 4 22 18 5 9 5 1 . 1 Ballistic Gun 7 | . 28 17 . . 2 9 14 3 . . Peak Build Rating 67 | 4 7 25 24 27 45 55 67 67 2 14 Average Rating 34 | 2 6 16 24 24 35 52 63 26 2 5 On Entrance 23 | . 4 7 24 24 25 45 55 67 2 2 Naked Turns 234 | . . . . . . . . 70 105 59 Heaviest Build 208 | 4 94 173 173 177 194 198 208 201 . 13 Greatest Support 157 | 20 20 80 80 120 147 147 157 157 3 10 Greatest Overweight (x) 31 | 1 4 31 2 3 17 1 1 7 . 3 Average Overweight (x) 1 | . 1 3 2 1 2 1 1 . . . Largest Inventory Capacity 25 | 5 25 25 25 25 25 25 25 25 5 5 Average Capacity 23 | 5 18 25 25 25 25 25 25 14 5 5 Most Carried 25 | 5 5 25 21 25 25 25 25 24 5 5 Average Carried 20 | 4 3 15 21 23 24 24 24 12 5 3 Final Capacity 25 | 5 25 25 25 25 25 25 25 5 5 5 Final Carried 25 | 5 3 21 21 24 25 25 24 5 5 2 Class Distribution -------------------- 71% | Mutant 16% | Scavenger-Gunner 8% | Gunner Dominant Class ---------------- Mutant | -10/Materials Mutant | -9/Materials Mutant | -9/Mines Mutant | -8/Materials Mutant | -7/Factory Gunner | -6/Factory Scavenger-Gunner | -5/Factory Mutant | -5/Waste Mutant | -5/Factory Mutant | -5/Extension Resources | -11 -10 -9 -9 -8 -7 -6 -5 -5 -5 -5 ----------- Run | Yrd Mat Mat Min Mat Fac Fac Fac Was Fac Ext Matter Collected 2167 | 205 17 240 . 214 488 158 786 4 . 55 Remotely . | . . . . . . . . . . . Salvage Created 4472 | . 17 296 . 900 1108 414 1720 . . 17 Parts 206 | . . 29 . 37 65 16 58 . . 1 Haulers Intercepted 5 | . . . . 1 3 . 1 . . . Recyclers Shooed 2 | . . . . . 1 1 . . . . Parts Field Recycled . | . . . . . . . . . . . Retrieved Matter . | . . . . . . . . . . . Parts Self-Destructed . | . . . . . . . . . . . Prevented . | . . . . . . . . . . . Kills | -11 -10 -9 -9 -8 -7 -6 -5 -5 -5 -5 ------- Run | Yrd Mat Mat Min Mat Fac Fac Fac Was Fac Ext Combat Hostiles Destroyed 64 | . . 7 . 14 15 5 23 . . . Guns 33 | . . 6 . . 8 3 16 . . . Cannons 29 | . . 1 . 13 6 2 7 . . . Classes Destroyed 13 | . 1 5 . 2 3 2 . . . . Worker 9 | . . 2 . 2 1 1 2 . . 1 Builder 1 | . . . . . . 1 . . . . Tunneler 1 | . . . . 1 . . . . . . Hauler 5 | . . . . 1 3 . 1 . . . Recycler 6 | . . . . . 3 1 2 . . . Watcher 5 | . 1 1 . 1 1 . 1 . . . Swarmer 10 | . . 3 . . 7 . . . . . Grunt 24 | . . 2 . 7 . 2 13 . . . Brawler 2 | . . 1 . 1 . . . . . . Duelist 3 | . . . . . . 1 2 . . . Sentry 14 | . . 1 . 6 3 1 3 . . . Hunter 2 | . . . . . 1 . 1 . . . Programmer 9 | . . . . . 4 1 4 . . . Best Kill Streak 8 | . 1 4 . 6 6 3 8 . . 1 Combat Bots Only 6 | . . 4 . 6 4 3 5 . . . Max Kills in Single Turn 2 | . 1 1 . 2 1 1 1 . . 1 Gunslinging . | . . . . . . . . . . . Exploded . | . . . . . . . . . . . Melee . | . . . . . . . . . . . Uniques/NPCs Destroyed . | . . . . . . . . . . . Combat | -11 -10 -9 -9 -8 -7 -6 -5 -5 -5 -5 -------- Run | Yrd Mat Mat Min Mat Fac Fac Fac Was Fac Ext Hostile Shots Fired 706 | . . 53 . 61 325 58 143 20 4 42 Missed 201 | . . 14 . 13 103 16 34 1 3 17 Damage Taken 5757 | . . 365 . 619 1660 410 1470 716 16 501 Core 1002 | . . 13 . 77 180 34 122 289 16 271 Absorbed by Shields . | . . . . . . . . . . . Ignored by Resistances 1665 | . . 110 . 164 529 127 406 189 5 135 Core Remaining (%) 92 | 100 100 . 96 86 74 96 . . . . Volleys Fired 215 | . 2 19 . 38 62 17 60 13 . 4 Largest 4 | . 2 2 . 2 2 3 4 4 . 1 Hottest 192 | . 40 136 . 136 120 185 192 188 . 80 Shots Fired 510 | . 4 38 . 68 105 51 213 27 . 4 Gun 278 | . 4 30 . . 77 25 134 8 . . Cannon 230 | . . 8 . 68 28 26 79 17 . 4 Launcher 2 | . . . . . . . . 2 . . Special . | . . . . . . . . . . . Kinetic 255 | . 4 30 . . 21 25 153 22 . . Thermal 253 | . . 8 . 68 84 26 60 3 . 4 Explosive 2 | . . . . . . . . 2 . . Electromagnetic . | . . . . . . . . . . . Robot Hit Streak 28 | . 1 15 . 15 16 7 23 28 . 3 Robot Miss Streak 5 | . 2 2 . 1 3 4 5 1 . 1 Penetration Max 1 | . . . . . . . 1 . . . Secondary Targets 2 | . . 1 . . 1 . . . . . Max Gunslinging Chain 1 | . . 1 . . 1 . . . . . Shots Hit Robots 382 | . 2 29 . 55 74 35 158 26 . 3 Core Hits 191 | . 1 13 . 25 31 20 95 3 . 3 Critical Kills 4 | . . . . 1 . . 3 . . . Critical Parts Destroyed 6 | . . . . . . . 6 . . . Critical Strikes 13 | . . . . 1 3 . 9 . . . Burn 3 | . . . . . 3 . . . . . Meltdown 1 | . . . . 1 . . . . . . Destroy 9 | . . . . . . . 9 . . . Melee Attacks . | . . . . . . . . . . . Impact . | . . . . . . . . . . . Slashing . | . . . . . . . . . . . Piercing . | . . . . . . . . . . . Sneak Attacks . | . . . . . . . . . . . Combat Hostiles . | . . . . . . . . . . . Follow-up Attacks . | . . . . . . . . . . . Damage Inflicted 8960 | . 28 414 . 1257 1525 885 3701 1058 . 92 Guns 3973 | . 28 312 . . 1065 312 2098 158 . . Cannons 4531 | . . 102 . 1228 442 568 1451 664 . 76 Explosions 388 | . . . . . . . 152 236 . . Melee . | . . . . . . . . . . . Ramming 68 | . . . . 29 18 5 . . . 16 Kinetic 4025 | . 28 312 . . 265 312 2365 743 . . Thermal 4631 | . . 102 . 1228 1242 568 1336 79 . 76 Explosive 236 | . . . . . . . . 236 . . Electromagnetic . | . . . . . . . . . . . Impact . | . . . . . . . . . . . Slashing . | . . . . . . . . . . . Piercing . | . . . . . . . . . . . Highest Corruption 2 | . . . . . 2 . 1 1 1 1 Average Corruption 1 | . . . . . 1 . 1 1 1 1 Corruption Purged . | . . . . . . . . . . . Corruption Blocked . | . . . . . . . . . . . Effects 24 | . . . . . 17 . 4 2 . 1 Message Errors 5 | . . . . . 3 . . 1 . 1 Matter Fused 10 | . . . . . 7 . 2 1 . . Heat Flow Errors 1 | . . . . . . . 1 . . . Parts Rejected 1 | . . . . . 1 . . . . . Parts Fused 1 | . . . . . 1 . . . . . Data Loss (minor) 2 | . . . . . 2 . . . . . Data Loss (major) 1 | . . . . . 1 . . . . . Misfires 2 | . . . . . 2 . . . . . Weapon Failures 1 | . . . . . . . 1 . . . Overload Shots . | . . . . . . . . . . . Overflow Damage 75 | . . . . 3 1 . 71 . . . Projectiles 22 | . . . . 3 1 . 18 . . . Explosions 53 | . . . . . . . 53 . . . Melee . | . . . . . . . . . . . Knockbacks 3 | . . . . . . . 3 . . . Impact . | . . . . . . . . . . . Kinetic 3 | . . . . . . . 3 . . . Secondary . | . . . . . . . . . . . Self-Inflicted Damage 64 | . . . . . 9 . . 48 . 7 Shots 2 | . . . . . . . . 2 . . Rammed 5 | . . . . 1 1 1 . . . 2 Targets Rammed 6 | . . . . 2 1 1 . . . 2 Kicked 1 | . . . . 1 . . . . . . Crushed . | . . . . . . . . . . . Highest Temperature 618 | . . 144 . 554 485 257 618 318 . 61 Average Temperature 176 | . . 54 . 177 174 99 206 158 . 31 Received Heat Transfer 1389 | . . 111 . 324 216 180 531 . . 27 Effects 51 | . . . . 11 12 . 28 . . . Shutdowns 15 | . . . . 2 3 . 10 . . . Energy Bleed 6 | . . . . 2 1 . 3 . . . Interference 14 | . . . . 2 2 . 10 . . . Matter Decay 5 | . . . . 2 2 . 1 . . . Short Circuit 6 | . . . . 2 2 . 2 . . . Damage (minor) 2 | . . . . . . . 2 . . . Damage (major) 2 | . . . . . 2 . . . . . Damage (core) 1 | . . . . 1 . . . . . . Siege Activations . | . . . . . . . . . . . Robots Corrupted . | . . . . . . . . . . . Combat Hostiles . | . . . . . . . . . . . Parts Fried . | . . . . . . . . . . . Impact Corruptions . | . . . . . . . . . . . Robots Melted 2 | . . . . 1 1 . . . . . Combat Hostiles 2 | . . . . 1 1 . . . . . Parts Melted 15 | . . . . 4 6 3 2 . . . Heat Transferred 8462 | . . 185 . 2109 2418 1100 2350 150 . 150 Parts Sabotaged . | . . . . . . . . . . . Parts Stolen . | . . . . . . . . . . . Parts Stripped . | . . . . . . . . . . . Power Chain Reactions . | . . . . . . . . . . . Alert | -11 -10 -9 -9 -8 -7 -6 -5 -5 -5 -5 ------- Run | Yrd Mat Mat Min Mat Fac Fac Fac Was Fac Ext Peak Influence 544 | . 22 175 19 221 102 176 544 132 46 53 Initial 132 | . . 7 19 6 34 . . 132 31 18 Average 88 | . 17 42 19 79 47 36 258 74 40 32 Maximum Alert Level 2 | . . . . 1 . . 2 . . . Low Security (%) 87 | 100 100 100 100 94 100 100 41 100 100 100 Level 1 3 | . . . . 5 . . 11 . . . Level 2 9 | . . . . . . . 46 . . . Level 3 . | . . . . . . . . . . . Level 4 . | . . . . . . . . . . . Level 5 . | . . . . . . . . . . . High Security . | . . . . . . . . . . . Max Security . | . . . . . . . . . . . Squads Dispatched 27 | . . 2 . 6 5 7 5 . . 2 Investigation 3 | . . . . 1 . 1 1 . . . Extermination 8 | . . . . . 4 2 2 . . . Reinforcement 10 | . . 2 . 2 1 1 2 . . 2 Assault . | . . . . . . . . . . . Garrison 6 | . . . . 3 . 3 . . . . Intercept . | . . . . . . . . . . . Searches Triggered . | . . . . . . . . . . . Construction Impeded 2 | . . . . . . 1 . . . 1 Haulers Reinforced . | . . . . . . . . . . . Active Scanning Responses . | . . . . . . . . . . . Cargo Convoy Interrupts 1 | . . . . . . . 1 . . . Stealth | -11 -10 -9 -9 -8 -7 -6 -5 -5 -5 -5 --------- Run | Yrd Mat Mat Min Mat Fac Fac Fac Was Fac Ext Distress Signals 9 | . . . . 4 . 3 1 . . 1 Communications Jammed . | . . . . . . . . . . . Distress Signals . | . . . . . . . . . . . Times Spotted 111 | . 2 12 . 20 21 8 32 6 3 7 Peak Tracking Total 8 | . 1 4 . 8 4 5 6 6 3 7 Tactical Retreats 2 | . . . . . . . 1 . . 1 Traps | -11 -10 -9 -9 -8 -7 -6 -5 -5 -5 -5 ------- Run | Yrd Mat Mat Min Mat Fac Fac Fac Was Fac Ext Traps Triggered 7 | . . 1 . 1 2 1 2 . . . Indirectly . | . . . . . . . . . . . Trap Hack Attempts . | . . . . . . . . . . . Triggered . | . . . . . . . . . . . Disarmed . | . . . . . . . . . . . Reprogrammed . | . . . . . . . . . . . Reused . | . . . . . . . . . . . Traps Extracted . | . . . . . . . . . . . Installed . | . . . . . . . . . . . Triggered 1 | . . . . . . . 1 . . . Machines | -11 -10 -9 -9 -8 -7 -6 -5 -5 -5 -5 ---------- Run | Yrd Mat Mat Min Mat Fac Fac Fac Was Fac Ext Machines Disabled 21 | . . 1 . 1 . . 19 . . . Max in Single Turn 19 | . . 1 . 1 . . 19 . . . Machines Repaired . | . . . . . . . . . . . Machines Dismantled . | . . . . . . . . . . . Machines Sabotaged . | . . . . . . . . . . . Overloaded Fab Kills . | . . . . . . . . . . . Hacking | -11 -10 -9 -9 -8 -7 -6 -5 -5 -5 -5 --------- Run | Yrd Mat Mat Min Mat Fac Fac Fac Was Fac Ext Machines Accessed . | . . . . . . . . . . . Terminals . | . . . . . . . . . . . Fabricators . | . . . . . . . . . . . Repair Stations . | . . . . . . . . . . . Recycling Units . | . . . . . . . . . . . Scanalyzers . | . . . . . . . . . . . Garrison Access . | . . . . . . . . . . . Total Hacks . | . . . . . . . . . . . Successful . | . . . . . . . . . . . Failed . | . . . . . . . . . . . Catastrophic . | . . . . . . . . . . . Database Lockouts . | . . . . . . . . . . . Manual . | . . . . . . . . . . . Terminals . | . . . . . . . . . . . Fabricators . | . . . . . . . . . . . Repair Stations . | . . . . . . . . . . . Recycling Units . | . . . . . . . . . . . Scanalyzers . | . . . . . . . . . . . Garrison Access . | . . . . . . . . . . . Terminal Hacks . | . . . . . . . . . . . Fabricator Hacks . | . . . . . . . . . . . Repair Station Hacks . | . . . . . . . . . . . Recycling Unit Hacks . | . . . . . . . . . . . Scanalyzer . | . . . . . . . . . . . Garrison Access Hacks . | . . . . . . . . . . . Unauthorized Hacks . | . . . . . . . . . . . Terminals . | . . . . . . . . . . . Fabricators . | . . . . . . . . . . . Repair Stations . | . . . . . . . . . . . Recycling Units . | . . . . . . . . . . . Scanalyzers . | . . . . . . . . . . . Garrison Access . | . . . . . . . . . . . Data Cores Recovered . | . . . . . . . . . . . Used . | . . . . . . . . . . . Hacking Detections . | . . . . . . . . . . . Full Trace Events . | . . . . . . . . . . . Feedback Events . | . . . . . . . . . . . Feedback Blocked . | . . . . . . . . . . . Robot Schematics Acquired . | . . . . . . . . . . . Robots Built . | . . . . . . . . . . . Authchips . | . . . . . . . . . . . Time . | . . . . . . . . . . . Total Robot Build Rating . | . . . . . . . . . . . Part Schematics Acquired . | . . . . . . . . . . . Parts Built . | . . . . . . . . . . . Authchips . | . . . . . . . . . . . Time . | . . . . . . . . . . . Total Part Build Rating . | . . . . . . . . . . . Parts Repaired . | . . . . . . . . . . . Time . | . . . . . . . . . . . Parts Recycled . | . . . . . . . . . . . Recycled Matter . | . . . . . . . . . . . Retrieved Matter . | . . . . . . . . . . . Retrieved Components . | . . . . . . . . . . . Parts Scanalyzed . | . . . . . . . . . . . Part Schematics Acquired . | . . . . . . . . . . . Parts Damaged . | . . . . . . . . . . . Bothacking | -11 -10 -9 -9 -8 -7 -6 -5 -5 -5 -5 ------------ Run | Yrd Mat Mat Min Mat Fac Fac Fac Was Fac Ext Used RIF Installer . | . . . . . . . . . . . Robots Hacked . | . . . . . . . . . . . Non-combat . | . . . . . . . . . . . Combat . | . . . . . . . . . . . Robot Hacks Applied . | . . . . . . . . . . . Relay Couplers Released . | . . . . . . . . . . . Fabnet Peak Effective % . | . . . . . . . . . . . Robots Rewired . | . . . . . . . . . . . Allies Hacked . | . . . . . . . . . . . Hacks Repelled . | . . . . . . . . . . . Allies | -11 -10 -9 -9 -8 -7 -6 -5 -5 -5 -5 -------- Run | Yrd Mat Mat Min Mat Fac Fac Fac Was Fac Ext Total Allies . | . . . . . . . . . . . Largest Group . | . . . . . . . . . . . Highest-Rated Group . | . . . . . . . . . . . Highest-Rated Ally . | . . . . . . . . . . . Total Orders . | . . . . . . . . . . . Ally Attacks . | . . . . . . . . . . . Total Damage . | . . . . . . . . . . . Kills . | . . . . . . . . . . . Allies Corrupted . | . . . . . . . . . . . Allies Melted . | . . . . . . . . . . . Intel | -11 -10 -9 -9 -8 -7 -6 -5 -5 -5 -5 ------- Run | Yrd Mat Mat Min Mat Fac Fac Fac Was Fac Ext Robot Analysis Total . | . . . . . . . . . . . Derelict Logs Recovered . | . . . . . . . . . . . Drone Launches . | . . . . . . . . . . . Drone Recoveries . | . . . . . . . . . . . Exploration | -11 -10 -9 -9 -8 -7 -6 -5 -5 -5 -5 ------------- Run | Yrd Mat Mat Min Mat Fac Fac Fac Was Fac Ext Turns Passed 7751 | 57 340 1051 251 1124 2448 542 1497 178 105 158 Spaces Moved 2888 | 42 131 252 77 369 682 209 522 155 209 240 Core 609 | 20 . 15 . . . . . 136 209 229 Treads 1373 | 21 20 226 77 112 167 209 522 19 . . Legs 784 | 1 111 11 . 257 404 . . . . . Wheels 11 | . . . . . . . . . . 11 Hover . | . . . . . . . . . . . Flight 111 | . . . . . 111 . . . . . Fastest Speed 50 | 50 120 250 330 246 225 227 227 50 50 50 Average Speed 234 | 111 245 380 330 257 324 227 230 75 50 57 Slowest Speed 1600 | 160 400 1600 330 330 1415 227 235 400 50 200 Overloaded Moves . | . . . . . . . . . . . Propulsion Burnouts . | . . . . . . . . . . . Robots Hopped . | . . . . . . . . . . . Cave-ins Triggered . | . . . . . . . . . . . Exploration Rate (%) 26 | 3 31 28 33 39 27 7 16 80 8 21 Regions Visited 10 Branch Regions 2 Pre-discovered Areas . | . . . . . . . . . . . Known Exits Taken . | . . . . . . . . . . . Unknown Exits Taken 8 | 1 1 1 1 1 1 1 . . 1 . Scrap Searched . | . . . . . . . . . . . Spaces Dug . | . . . . . . . . . . . Terrain Destroyed 96 | . . . . 1 . . 87 8 . . Melee . | . . . . . . . . . . . Projectile 2 | . . . . 1 . . . 1 . . AOE 94 | . . . . . . . 87 7 . . Terrain Rammed . | . . . . . . . . . . . Walls Destroyed . | . . . . . . . . . . . Machines Disabled . | . . . . . . . . . . . Actions | -11 -10 -9 -9 -8 -7 -6 -5 -5 -5 -5 --------- Run | Yrd Mat Mat Min Mat Fac Fac Fac Was Fac Ext Total 3480 | 50 149 311 76 488 822 244 687 189 208 256 Wait 124 | . 6 4 . 27 4 1 65 12 . 5 Move 2879 | 41 130 251 76 368 681 208 522 154 208 240 Hop . | . . . . . . . . . . . Pick Up 96 | 5 3 24 . 21 20 6 15 1 . 1 Fast Attach 19 | 4 . . . . 14 . 1 . . . Attach 51 | . 5 4 . 9 8 2 11 8 . 4 Detach 3 | . 1 2 . . . . . . . . Swap 22 | . . 3 . 4 7 3 4 1 . . Drop 65 | . 2 4 . 19 25 6 9 . . . Fire 215 | . 2 19 . 38 62 17 60 13 . 4 Melee . | . . . . . . . . . . . Ram 3 | . . . . . 1 . . . . 2 Kick 1 | . . . . 1 . . . . . . Crush 2 | . . . . 1 . 1 . . . . Escape Stasis . | . . . . . . . . . . . Rewire . | . . . . . . . . . . . Trap . | . . . . . . . . . . . Miscellaneous . | . . . . . . . . . . . Route ------- -11/Scrapyard -10/Materials -9/Materials -9/Mines -8/Materials -7/Factory -6/Factory -5/Factory -5/Waste -5/Factory -5/Extension History --------- Turn | Location | Event 13 | -11/Scrapyard | Discovered new exit (range 15) 58 | -11/Scrapyard | Entered Materials 309 | -10/Materials | Build established: Mutant 366 | -10/Materials | Discovered new exit (range 5) 398 | -10/Materials | Entered another Materials area 398 | -9/Materials | Evolved 2 slots: Propulsion x2 1393 | -9/Materials | Discovered new exit (range 13) 1449 | -9/Materials | Entered Mines 1490 | -9/Mines | Met a Derelict bent on vengeance 1638 | -9/Mines | Discovered new exit (range 9) 1700 | -9/Mines | Entered Materials 1700 | -8/Materials | Evolved 2 slots: Propulsion x2 2256 | -8/Materials | Met 7R-MNS 2611 | -8/Materials | Garrison activated, responded to threat 2791 | -8/Materials | Discovered new exit (range 14) 2824 | -8/Materials | Entered Factory 2824 | -7/Factory | Evolved 2 slots: Power x1, Utility x1 2825 | -7/Factory | Caught up to 7R-MNS 3941 | -7/Factory | Lost 7 parts (1p5n1w) 5229 | -7/Factory | Discovered new exit (range 15) 5272 | -7/Factory | Entered another Factory area 5272 | -6/Factory | Evolved 2 slots: Utility x1, Weapon x1 5273 | -6/Factory | Caught up to 7R-MNS 5532 | -6/Factory | Garrison activated, responded to threat 5780 | -6/Factory | Discovered new exit (range 15) 5814 | -6/Factory | Entered another Factory area 5814 | -5/Factory | Evolved 2 slots: Utility x1, Weapon x1 5815 | -5/Factory | Caught up to 7R-MNS 6496 | -5/Factory | Build established: Scavenger-Gunner 6727 | -5/Factory | Cargo convoy interrupted 7075 | -5/Factory | Lost 3 parts (1p2w) 7311 | -5/Factory | Sucked down chute 7311 | -5/Factory | Entered Waste 7330 | -5/Waste | Spotted C-40 Crusher 7358 | -5/Waste | Crushed by Compactor (1 part destroyed, 2 dropped) 7361 | -5/Waste | Crushed by Compactor (1 part destroyed, 2 dropped) 7369 | -5/Waste | Crushed by Compactor (1 part destroyed, 1 dropped) 7372 | -5/Waste | Crushed by Compactor (1 part destroyed, 2 dropped) 7377 | -5/Waste | Crushed by Compactor (0 parts destroyed, 1 dropped) 7380 | -5/Waste | Crushed by Compactor (1 part destroyed) 7381 | -5/Waste | Spotted C-40 Crusher 7383 | -5/Waste | Crushed by Compactor (0 parts destroyed, 1 dropped) 7386 | -5/Waste | Crushed by Compactor (1 part destroyed, 2 dropped) 7389 | -5/Waste | Crushed by Compactor (0 parts destroyed, 1 dropped) 7393 | -5/Waste | Crushed by Compactor (1 part destroyed) 7402 | -5/Waste | Spotted C-40 Crusher 7410 | -5/Waste | Crushed by Compactor (0 parts destroyed, 1 dropped) 7415 | -5/Waste | Spotted C-40 Crusher 7419 | -5/Waste | Crushed by Compactor (0 parts destroyed, 1 dropped) 7440 | -5/Waste | Spotted C-40 Crusher 7449 | -5/Waste | Spotted C-40 Crusher 7450 | -5/Waste | Lost 11 parts (4n2u5w) 7482 | -5/Waste | Discovered new exit (range 15) 7489 | -5/Waste | Entered Factory 7587 | -5/Factory | Discovered new exit (range 13) 7594 | -5/Factory | Entered Extension 7632 | -5/Extension | Spotted B-75 Beast 7637 | -5/Extension | Spotted B-75 Beast 7640 | -5/Extension | Core integrity fell below 50% 7675 | -5/Extension | Build established: Mutant 7724 | -5/Extension | Lost 3 parts (1p1n1w) 7752 | -5/Extension | Self-destructed Last Messages --------------- 07683_ Acquired 3 matter. 07684_ Penetrated by Slug. 07689_ K-01 Serf destroyed. 07690_ Penetrated by Slug. 07690_ Wheel destroyed. 07691_ Lgt. Nuclear Core destroyed. 07693_ Plasma Cannon destroyed. 07693_ Acquired 4 matter. 07694_ Penetrated by Slug. 07694_ Acquired 5 matter. 07695_ Acquired 6 matter. 07724_ R|1P0NZDE5OCS#MQM,OHSTAW8% 07730_ ALERT: Hostiles spotted, dispatching reinforcements to Terminal E004. 07740_ T-07 Excavator enters Transfer Station. 07748_ Slammed into U-05 Engineer. 07749_ ALERT: Construction progress impeded, dispatching reinforcements to local area. 07751_ Slammed into K-01 Serf. 07752_ Penetrated by Slug. Map ----- +----------------------------------------------------+ | ?????" ???????????????????????????????????? | | ????? ???????????????????????????????????? | | ?????" ???????????????????????????????????? | | ?????" #??????????????????????????????????? | | ?????" #??????????????????????????????????? | | ?????# #?????????#????????????????????????? | | ?????# #??????????????????????????????????? | | ?????# #???????#??????????????????????????? | | ?????# #?????????????????????#????????????? | | ?????# #??????????????????????????????????? | | ???#?# #??#???????????????????????????????? | | ?????# #??????????????????????????????????# | | ?????# #??????????????????????????????????? | | ?????# #????????????????????????????????#?? | | ?????# #????#?????????????????????????????? | | ?????# ##?????????????????????????????????? | | ?????# #??????????????????????????????????? | | ??#??# #????????#???????????????????????#?? | | ?##### ######?##??????????????????????????? | | ?# "" "" #??????????????????????????????? | | ?# " " ################################ | | ?# u u | | ?# w | | ?# | | ?# k | | ?# @ tuR | | ?# k ################################ | | ?# #????????????#?????????????????? | | ?###" "###??????????????????????????????? | | ???#" "#????????????????????????????????? | | ???#"""""#??????????#?????????????????????? | | ?#?#######????????????????????????????????? | | ?????????????????????????????????????????#? | | ??????????????????????????????????????????? | | | | | | | | | | | | | | | | | | | | | | | | | | | | | | | | | +----------------------------------------------------+ Best States ------------- Heat Dissipation 54 Energy Generation 31 Energy Capacity 520 Matter Stores 300 Matter Capacity 300 Sight Range 16 Terrain Scan Range 20 Terrain Scan Density 10 Additional Mass Support 9 Resistance: KI 20 Resistance: TH 20 Resistance: EX 45 Resistance: EM 20 Resistance: I 20 Resistance: S 20 Resistance: P 20 Evasion (%) 55 Recoil Reduction 6 Kinecelleration 40 Offensive Hacking 10 Item Schematics ----------------- None Robot Schematics ------------------ None Fabricated ------------ Nothing Alien Tech Used ----------------- None Achievements -------------- It Was An Accident, I Swear Challenges ------------ None Game ------ Seed UltimateGuidedAxe Manual? 0 Play Time 00:54:43 Cumulative 32.6 hours Start 2025.03.13 @ 02:04:46 End 2025.03.13 @ 15:14:00 Sessions 3 Manual Loads 0 Difficulty Adventurer Special Mode None Game No. 61 Rogue 7 Adventurer 54 Explorer 0 Win Type - Total 0 Types 0/0/0/0/0/0/0/0/0 Lore% 6 Gallery% 28 Achievement% 23 Wizard Run 0 Options --------- Layout 2 ASCII 0 Keyboard 0 Movement Mouse Keybinds 0 Fullscreen 1 Font 24/Smallcaps Map View 50x44 Zoom Use 0% Tactical HUD 1 Map Filters NONE Filters NONE Steam 1 RUN: ae42604f-d084-443f-bcc2-5ab0aeae5337